bitfinex/quotes_ETHUSD_20251212
["timestamp","ask_amount","ask_price","bid_price","bid_amount"]
[1765537383682,0.002,3246.2,3246.1,9.83543402]
[1765537383876,0.002,3246.2,3246.1,11.21953978]
[1765537384176,0.002,3246.2,3246.1,11.58926541]
[1765537384379,0.002,3246.2,3246.1,12.26336541]
[1765537385357,0.002,3246.2,3246.1,6.5699265]
[1765537385966,0.002,3246.2,3246.1,12.26241153]
[1765537388789,0.1947,3247.4,3246.2,0.405504]
[1765537388959,0.662,3247.4,3246.9,5.69248503]
[1765537389159,0.662,3247.4,3247.0,0.58047529]
[1765537389359,0.4791,3247.0,3246.7,0.58047529]
[1765537389585,0.4673,3247.3,3246.7,1.06647529]
[1765537389779,0.6781,3246.8,3246.7,3.6605258]
[1765537389983,0.6781,3246.8,3246.7,4.95130416]
[1765537390185,1.1454,3246.8,3246.7,4.95130416]
[1765537391087,0.1947,3247.4,3246.7,8.51225467]
[1765537391294,0.4673,3247.3,3246.7,5.43220416]
[1765537391481,0.4791,3246.8,3246.7,4.95130416]
[1765537393801,0.4673,3247.2,3246.7,8.8819803]
[1765537393980,0.4673,3247.2,3246.9,0.4809]
[1765537394298,0.4673,3247.2,3247.0,3.66024122]
[1765537394461,0.4673,3247.2,3247.0,4.12754122]
[1765537394666,0.4791,3247.1,3247.0,4.12754122]
[1765537394863,0.1947,3247.4,3247.0,7.20730715]
[1765537395080,0.4673,3247.3,3247.1,1.28997922]
[1765537395278,0.4673,3247.3,3247.1,1.48467922]
[1765537395493,0.4791,3247.2,3247.1,1.48467922]
[1765537395795,0.4791,3247.2,3247.1,1.28997922]
[1765537395993,0.9464,3247.2,3247.0,1.05957529]
[1765537396264,0.0048,3247.1,3247.0,0.58047529]
[1765537396496,0.4721,3247.1,3247.0,0.58047529]
[1765537397998,0.4721,3247.1,3247.0,3.66024122]
[1765537398179,0.4721,3247.1,3247.0,0.58047529]
[1765537398815,0.4721,3247.1,3246.1,0.1817]
[1765537399112,0.4688,3247.0,3246.6,0.58047529]
[1765537399466,0.015,3246.7,3246.6,0.58047529]
[1765537399690,0.015,3246.7,3246.6,3.08014538]
[1765537399889,0.5111,3246.7,3246.6,0.58047529]
[1765537400298,0.5111,3246.7,3246.6,3.66062067]
[1765537400502,0.5111,3246.7,3246.6,4.33471589]
[1765537400699,0.5111,3246.7,3246.6,0.67409522]
[1765537401068,0.5111,3246.7,3246.5,3.08017792]
[1765537401273,0.444,3246.6,3246.5,3.08017792]
[1765537402104,0.6706,3246.9,3246.7,3.08005051]
[1765537402486,0.4691,3246.8,3246.6,3.66062067]
[1765537402810,0.949,3246.8,3246.6,3.66062067]
[1765537403001,0.0105,3246.7,3246.6,3.66062067]
[1765537403206,0.0105,3246.7,3246.6,4.3347143]
[1765537403817,0.1907,3246.9,3246.6,4.3347143]
[1765537404117,0.6706,3246.9,3246.6,4.3347143]
[1765537405197,0.6706,3246.9,3246.6,1.25456892]
[1765537405405,0.6706,3246.9,3246.6,3.08011084]
[1765537405888,0.4691,3246.7,3246.6,0.58047529]
[1765537406219,0.4691,3246.7,3246.4,0.6807]
[1765537406220,0.4691,3246.7,3246.4,0.58047529]
[1765537406404,0.4691,3246.5,3246.4,0.58047529]
[1765537406609,0.4691,3246.5,3246.3,0.58047529]
[1765537406799,0.495,3246.4,3246.3,0.58047529]
[1765537407709,0.495,3246.4,3246.0,3.08070564]
[1765537407710,0.495,3246.4,3246.0,3.08070358]
[1765537407909,0.4799,3246.4,3246.2,0.58047529]
[1765537408415,0.4691,3246.3,3246.2,0.58047529]
[1765537408610,0.4691,3246.3,3246.0,0.34504313]
[1765537408611,0.4691,3246.3,3246.0,0.92551842]
[1765537408798,0.4691,3246.1,3246.0,0.92551842]
[1765537408995,0.4691,3246.1,3246.0,0.58047529]
[1765537409196,0.949,3246.1,3246.0,0.58047529]
[1765537409391,0.4691,3246.1,3246.0,3.66119001]
[1765537410538,0.4691,3246.1,3246.0,0.58047529]
[1765537410834,0.949,3246.1,3245.9,0.58047529]
[1765537411024,0.949,3246.1,3245.5,3.08116772]
[1765537411025,0.0105,3246.0,3245.4,0.92506224]
[1765537411336,0.4799,3246.0,3245.4,6.56316014]
[1765537411502,0.182,3245.9,3245.4,6.56316014]
[1765537411707,0.182,3245.9,3245.5,0.58047529]
[1765537412017,0.6619,3245.9,3245.5,0.58047529]
[1765537412218,0.6619,3245.9,3245.4,6.56316014]
[1765537412524,0.6619,3245.9,3245.5,0.74882281]
[1765537412692,0.6619,3245.9,3245.5,3.08114463]
[1765537413323,0.4799,3245.8,3245.4,4.06237015]
[1765537415500,0.4799,3245.8,3245.4,7.14365442]
[1765537415826,0.4799,3245.8,3245.4,4.06237015]
[1765537418031,0.4691,3245.5,3245.4,4.06237015]
[1765537418238,0.4691,3245.5,3245.4,0.40065129]
[1765537418424,0.949,3245.5,3245.4,0.98112658]
[1765537419103,0.4691,3245.5,3245.4,4.06241085]
[1765537420499,0.182,3245.9,3245.5,0.58047529]
[1765537420767,0.6619,3245.9,3245.5,0.58047529]
[1765537420936,0.6619,3245.9,3245.5,1.4797616]
[1765537421637,3.08066446,3246.1,3245.5,4.56086495]
[1765537421824,3.08066446,3246.1,3245.6,0.4647]
[1765537422026,3.56654686,3246.2,3245.6,0.4647]
[1765537422226,0.4799,3246.1,3245.6,0.4647]
[1765537422397,0.4799,3246.1,3245.5,4.56086495]
[1765537424231,3.08071472,3246.0,3245.5,0.89928631]
[1765537424606,0.4799,3245.9,3245.5,0.89928631]
[1765537425007,0.4799,3245.9,3245.5,3.98047013]
[1765537425312,0.6619,3245.9,3245.5,3.98045302]
[1765537425613,0.6619,3245.9,3245.6,0.4445153]
[1765537426104,0.182,3245.9,3245.6,0.4445153]
[1765537426305,0.4691,3245.7,3245.6,0.4445153]
[1765537428131,0.4691,3245.7,3245.6,3.5256097]
[1765537428830,0.182,3245.9,3245.6,3.5256097]
[1765537429007,0.4795,3246.0,3245.6,4.0026097]
[1765537434136,3.56023117,3246.0,3245.6,0.9215153]
[1765537434521,0.4795,3245.9,3245.6,0.477]
[1765537435419,0.4795,3245.9,3245.6,3.55809295]
[1765537435607,0.4795,3245.9,3245.6,0.477]
[1765537435809,0.4762,3245.7,3245.5,0.58047529]
[1765537436045,0.0167,3245.6,3245.3,1.50554324]
[1765537436341,0.4716,3245.5,3245.3,0.58047529]
[1765537436520,0.4716,3245.5,3245.3,1.01449791]
[1765537436720,0.0213,3245.4,3245.3,1.01449791]
[1765537437640,0.5008,3245.4,3245.3,0.43402262]
[1765537437839,0.5008,3245.4,3245.2,0.58047529]
[1765537438041,0.5008,3245.4,3245.2,3.66188309]
[1765537439644,0.0213,3245.4,3245.2,3.66188309]
[1765537442329,0.0213,3245.4,3245.2,6.74335726]
[1765537442529,0.486,3245.9,3245.3,0.477]
[1765537442846,0.486,3246.1,3245.8,0.477]
[1765537443147,0.486,3246.1,3245.7,3.08093643]
[1765537443320,0.4795,3246.0,3245.6,3.08105363]
[1765537444250,3.56656663,3246.2,3245.7,3.08098921]
[1765537444448,3.08046825,3246.3,3245.7,3.08098921]
[1765537444749,4.04596825,3246.3,3245.7,3.53918921]
[1765537445050,0.9655,3246.3,3245.7,3.53918921]
[1765537445255,4.0459489,3246.3,3245.7,2.04524591]
[1765537445547,0.4762,3245.8,3245.7,0.9250109]
[1765537447554,0.9557,3245.8,3245.7,0.9250109]
[1765537448056,0.4762,3245.8,3245.7,0.9250109]
[1765537452254,0.4795,3246.0,3245.7,4.00599124]
[1765537452460,0.9655,3246.3,3245.7,4.46419124]
[1765537453350,4.04593973,3246.3,3245.7,4.46419124]
[1765537453661,3.56643973,3246.3,3245.7,4.29370662]
[1765537453963,0.4795,3246.5,3245.8,1.96367193]
[1765537454129,0.9655,3246.5,3245.8,1.96367193]
[1765537454327,0.9655,3246.5,3245.9,0.4582]
[1765537454649,0.4795,3246.4,3245.9,0.92495671]
[1765537454823,0.4762,3246.0,3245.9,0.92495671]
[1765537455027,0.4795,3246.4,3245.9,1.76715052]
[1765537455229,0.4795,3246.3,3245.9,0.92495671]
[1765537455471,0.4795,3246.3,3245.9,3.08080963]
[1765537455643,0.4795,3246.3,3245.9,4.00576634]
[1765537455832,0.4795,3246.3,3245.9,3.08080963]
[1765537456237,0.4795,3246.3,3246.0,0.92495671]
[1765537456540,0.4762,3246.1,3246.0,0.92495671]
[1765537456746,0.4762,3246.1,3246.0,1.38358087]
[1765537459867,0.9677,3246.1,3246.0,0.45862416]
[1765537460049,0.9677,3246.1,3245.8,3.6613305]
[1765537460863,0.9677,3246.1,3245.9,0.92495671]
[1765537461564,0.4915,3246.1,3245.9,0.92495671]
[1765537461858,0.46,3246.0,3245.9,0.92495671]
[1765537462334,0.9565,3246.0,3245.9,0.92495671]
[1765537464537,0.9565,3246.0,3245.8,0.58047529]
[1765537464744,0.016,3245.9,3245.8,1.94706586]
[1765537464944,0.5125,3245.9,3245.8,5.02797041]
[1765537465137,0.016,3245.9,3245.8,5.02797041]
[1765537465339,0.4965,3246.1,3245.9,3.08079555]
[1765537466177,0.46,3246.0,3245.9,3.08079555]
[1765537467172,0.46,3246.0,3245.8,4.44746016]
[1765537467343,0.016,3245.9,3245.8,5.02793545]
[1765537467539,0.1976,3245.9,3245.8,0.92499664]
[1765537467741,0.6941,3245.9,3245.8,0.92499664]
[1765537468159,0.6941,3245.9,3245.5,3.6616503]
[1765537468490,0.4965,3245.8,3245.6,0.92507365]
[1765537468647,0.4576,3245.7,3245.6,0.92507365]
[1765537469564,0.4576,3245.7,3245.6,4.00616805]
[1765537472988,0.9554,3246.1,3245.6,4.95356805]
[1765537473176,0.9554,3246.1,3245.7,0.4864]
[1765537475193,0.9554,3246.1,3245.7,4.02833008]
[1765537475194,0.486,3246.1,3245.7,4.02833008]
[1765537475489,4.0360341,3246.1,3245.7,1.41143657]
[1765537475665,0.4778,3245.8,3245.7,0.92503657]
[1765537477096,0.9472,3245.8,3245.4,0.58047529]
[1765537477296,0.4937,3245.7,3245.5,0.92510218]
[1765537477710,0.4732,3245.6,3245.5,0.92510218]
[1765537480496,0.4732,3245.6,3245.1,0.6534]
[1765537480701,0.4732,3245.6,3245.3,3.08135204]
[1765537481002,0.4732,3245.6,3245.2,1.38610218]
[1765537481212,0.4732,3245.6,3245.3,0.15785022]
[1765537481426,0.4732,3245.6,3245.4,0.92510218]
[1765537483723,0.4732,3245.6,3245.4,4.00636464]
[1765537484422,0.4732,3245.6,3245.4,0.92510218]
[1765537487016,0.4694,3245.8,3245.4,0.92510218]
[1765537487410,3.55032989,3245.8,3245.4,0.92510218]
[1765537488019,0.4694,3245.8,3245.4,0.92510218]
[1765537488226,0.4694,3245.8,3245.4,4.00638452]
[1765537488401,0.486,3246.1,3245.4,4.76126989]
[1765537488712,0.4682,3246.0,3245.5,0.4984]
[1765537489412,3.5489391,3246.0,3245.5,3.5795721]
[1765537490019,0.4682,3246.0,3245.5,3.5795721]
[1765537490515,0.4682,3246.0,3245.5,3.0811721]
[1765537490714,0.4682,3246.0,3245.6,0.4984]
[1765537490887,3.54892949,3246.0,3245.6,0.4984]
[1765537491091,3.54892949,3246.0,3245.4,5.25962533]
[1765537491617,3.08072949,3246.0,3245.4,5.25962533]
[1765537491818,0.4682,3245.9,3245.4,5.25962533]
[1765537493620,3.56666339,3246.1,3245.5,3.57951257]
[1765537493814,4.03486339,3246.1,3245.5,3.57951257]
[1765537495619,3.08080963,3245.9,3245.4,4.76119728]
[1765537496018,0.452,3245.5,3245.4,1.67998755]
[1765537496202,0.5228,3245.8,3245.4,4.76124763]
[1765537496402,0.5228,3245.8,3245.4,5.24884763]
[1765537496715,0.0546,3245.8,3245.4,5.24884763]
[1765537496895,0.452,3245.5,3245.2,0.58047529]
[1765537497091,0.4493,3245.3,3245.0,3.66209927]
[1765537497292,0.4682,3245.6,3245.2,0.9251678]
[1765537497535,0.452,3245.1,3244.8,0.001]
[1765537497692,0.4493,3244.9,3244.8,0.487]
[1765537498020,0.6301,3244.9,3244.8,0.001]
[1765537498328,1.0983,3244.9,3244.8,0.001]
[1765537500702,1.09013491,3244.9,3244.8,0.001]
[1765537504306,0.90933491,3244.9,3244.8,0.001]
[1765537504506,0.44113491,3244.9,3244.8,0.001]
[1765537504742,0.90933491,3244.9,3244.8,0.001]
[1765537508028,0.4682,3245.1,3244.8,0.001]
[1765537508334,0.452,3244.9,3244.8,0.001]
[1765537508520,0.486,3245.3,3244.8,0.4886]
[1765537508719,0.4682,3245.2,3244.8,0.4886]
[1765537510950,3.54972891,3245.2,3244.8,0.4886]
[1765537511547,3.54972891,3245.2,3244.8,0.001]
[1765537511748,3.08152891,3245.2,3244.8,0.001]
[1765537511948,0.4682,3245.1,3244.8,0.001]
[1765537512349,3.08152891,3245.2,3244.8,0.001]
[1765537512523,3.54972891,3245.2,3244.8,0.001]
[1765537513152,0.4682,3245.1,3244.8,0.001]
[1765537514150,3.54977572,3245.1,3244.8,0.001]
[1765537514452,0.452,3244.9,3244.8,0.001]
[1765537515649,1.0981,3244.9,3244.8,0.001]
[1765537517256,0.9202,3244.9,3244.8,0.001]
[1765537517450,0.452,3244.9,3244.8,0.001]
[1765537517650,0.486,3245.3,3244.8,0.4918]
[1765537517960,0.486,3245.3,3244.8,0.9464]
[1765537517961,0.4561,3245.2,3244.8,0.9464]
[1765537518644,3.56741836,3245.3,3244.8,0.9464]
[1765537518833,4.02351836,3245.3,3244.8,0.9464]
[1765537519034,0.4561,3245.2,3244.8,0.9464]
[1765537519234,3.53758212,3245.2,3244.8,0.4918]
[1765537519431,0.4561,3245.2,3244.8,3.57364818]
[1765537520062,0.58047529,3246.3,3245.1,0.6739]
[1765537520363,0.486,3246.2,3245.4,5.7002228]
[1765537520682,0.9421,3246.2,3245.4,6.1548228]
[1765537520832,0.486,3246.2,3245.5,0.4546]
[1765537521038,0.486,3246.2,3245.6,0.61548228]
[1765537521260,0.486,3246.2,3245.7,6.16199894]
[1765537521556,0.486,3246.2,3246.1,0.4908]
[1765537521763,0.6468,3246.9,3246.1,0.4908]
[1765537521962,0.486,3246.8,3246.3,0.4908]
[1765537522355,0.9421,3246.8,3246.4,0.4908]
[1765537523274,0.4561,3246.7,3246.4,0.4908]
[1765537523444,0.4905,3246.5,3245.1,0.55282563]
[1765537523649,0.0049,3246.2,3245.3,0.58047529]
[1765537523857,0.0049,3246.2,3245.9,0.92511074]
[1765537524053,0.4561,3246.1,3245.3,1.03507529]
[1765537524278,0.4561,3246.1,3245.3,1.5506128]
[1765537524580,0.486,3246.0,3245.4,0.92511074]
[1765537525677,0.486,3246.0,3245.5,3.53578933]
[1765537525916,0.486,3246.3,3245.9,0.4908]
[1765537526175,0.486,3246.3,3246.0,0.4908]
[1765537526543,0.9421,3246.3,3246.1,0.58047529]
[1765537527687,0.4905,3246.2,3246.1,0.58047529]
[1765537528067,0.486,3246.3,3246.1,0.58047529]
[1765537528670,0.486,3246.3,3246.2,0.4908]
[1765537528871,0.486,3246.3,3246.1,0.58047529]
[1765537529075,0.4987,3246.2,3246.1,0.58047529]
[1765537529784,0.486,3246.3,3246.1,1.07127529]
[1765537529986,0.486,3246.3,3246.2,0.4908]
[1765537530377,0.486,3246.3,3246.1,0.58047529]
[1765537531654,0.4561,3246.6,3246.2,0.4908]
[1765537531860,0.486,3246.6,3246.2,0.4908]
[1765537532069,0.486,3246.6,3246.3,0.4546]
[1765537532257,0.486,3246.6,3246.3,0.9249282]
[1765537532671,0.486,3246.6,3246.5,0.4908]
[1765537532873,0.4561,3247.2,3246.5,0.4908]
[1765537533072,0.486,3247.1,3246.5,0.4908]
[1765537533466,0.9421,3247.1,3246.6,0.92487402]
[1765537533667,3.07948141,3247.3,3246.6,4.19197002]
[1765537533973,0.486,3247.2,3246.7,0.4546]
[1765537534371,0.486,3247.2,3246.7,1.37938564]
[1765537534778,0.486,3247.2,3246.7,0.4546]
[1765537535075,3.07948141,3247.3,3246.8,0.92478564]
[1765537535388,3.07948141,3247.3,3247.2,0.4908]
[1765537535389,0.486,3247.3,3247.2,0.4908]
[1765537535775,0.002,3247.4,3247.2,0.4908]
[1765537535978,0.488,3247.4,3247.3,0.4908]
[1765537536288,3.56738658,3247.4,3247.2,0.92468302]
[1765537536490,0.9408,3247.3,3247.2,0.92468302]
[1765537537280,4.02028141,3247.3,3247.2,0.92468302]
[1765537538094,4.02028141,3247.3,3246.8,0.46464816]
[1765537538287,0.4561,3247.2,3246.8,0.46464816]
[1765537538492,0.4561,3247.2,3246.9,0.92473148]
[1765537538659,0.0048,3247.0,3246.9,0.92473148]
[1765537538864,0.0048,3247.0,3246.9,1.37167225]
[1765537539303,0.0048,3247.0,3246.9,0.92473148]
[1765537539473,0.4561,3247.2,3246.9,0.92473148]
[1765537539790,3.07948141,3247.3,3246.9,0.92473148]
[1765537539981,0.4561,3247.2,3246.9,0.92473148]
[1765537540582,0.4847,3247.0,3246.9,0.92473148]
[1765537542166,0.9408,3247.0,3246.9,0.92473148]
[1765537543801,4.02056593,3247.0,3246.9,0.92473148]
[1765537545401,4.50656593,3247.0,3246.4,3.08028036]
[1765537545694,4.50656593,3247.0,3246.7,0.92482555]
[1765537546369,0.0048,3246.8,3246.7,0.92482555]
[1765537547089,3.56576593,3247.0,3246.7,0.92482555]
[1765537547397,4.02186593,3247.0,3246.7,0.92482555]
[1765537548670,0.4847,3246.8,3246.7,0.92482555]
[1765537549191,1.71626319,3246.8,3245.5,9.95169705]
[1765537549398,0.0081,3246.3,3245.8,3.0808514]
[1765537549568,0.0081,3246.3,3246.2,0.92495957]
[1765537549774,3.08043002,3246.3,3246.2,0.92495957]
[1765537550089,3.08043002,3246.3,3244.8,0.001]
[1765537550090,9.72239006,3246.3,3244.8,0.001]
[1765537550398,1.78267671,3246.2,3245.2,0.92519633]
[1765537550766,0.0117,3245.3,3245.2,0.92519633]
[1765537551473,0.486,3245.4,3245.2,0.92519633]
[1765537551895,0.486,3245.4,3245.3,0.4949]
[1765537552081,0.486,3245.4,3245.3,0.9677]
[1765537552609,0.486,3245.4,3245.3,0.4949]
[1765537553109,0.486,3245.5,3245.3,0.4949]
[1765537554602,0.4811,3245.4,3245.2,0.92519633]
[1765537554786,0.0207,3245.3,3245.2,0.92519633]
[1765537559197,3.55587922,3245.3,3245.2,0.92519633]
[1765537560317,3.10207922,3245.3,3245.2,0.92519633]
[1765537560520,4.2228068,3245.3,3244.8,0.001]
[1765537560814,0.6701,3244.9,3244.8,0.92635329]
[1765537561001,1.1561,3244.9,3244.8,0.001]
[1765537561205,1.6099,3244.9,3244.8,0.001]
[1765537561385,1.77089,3244.9,3244.8,0.001]
[1765537561912,4.85264906,3244.9,3244.8,0.001]
[1765537563615,0.12340061,3245.2,3244.8,0.001]
[1765537563616,3.08170224,3245.0,3244.8,0.001]
[1765537563790,0.486,3244.9,3244.8,0.001]
[1765537564190,3.56775906,3244.9,3244.8,0.4959]
[1765537564994,0.486,3244.9,3244.8,0.4959]
[1765537566617,3.56775906,3244.9,3244.8,0.4959]
[1765537566799,0.486,3244.9,3244.8,0.4959]
[1765537567003,3.56775906,3244.9,3244.8,0.4959]
[1765537567912,0.486,3244.9,3244.8,0.4959]
[1765537568294,3.56775906,3244.9,3244.8,0.4959]
[1765537568794,0.486,3244.9,3244.8,0.4959]
[1765537569332,1.6145,3244.9,3244.8,0.001]
[1765537570323,4.69625906,3244.9,3244.8,0.001]
[1765537578097,5.49105339,3244.9,3244.8,0.001]
[1765537578295,5.00345559,3244.9,3244.8,0.001]
[1765537578528,4.19645906,3244.9,3244.8,0.001]
[1765537578733,4.68245906,3244.9,3244.8,0.001]
[1765537579647,5.11876086,3244.9,3244.8,0.001]
[1765537580141,5.08796306,3244.9,3244.8,0.001]
[1765537581819,4.60196306,3244.9,3244.8,0.001]
[1765537582020,5.85632593,3244.9,3244.8,0.001]
[1765537585843,3.85012193,3244.9,3244.8,0.4738]
[1765537586000,3.56775906,3244.9,3244.8,0.001]
[1765537586203,4.03155906,3244.9,3244.8,0.001]
[1765537586615,4.48835906,3244.9,3244.8,0.001]
[1765537591535,4.03155906,3244.9,3244.8,0.001]
[1765537592512,4.48835906,3244.9,3244.8,0.001]
[1765537594316,3.08175906,3244.9,3244.8,0.001]
[1765537594517,3.08175906,3244.9,3244.8,0.4738]
[1765537594732,3.56775906,3244.9,3244.8,0.9502]
[1765537595040,3.56775906,3244.9,3244.8,0.4738]
[1765537597039,0.486,3244.9,3244.8,0.4738]
[1765537597542,3.08156913,3245.1,3244.8,0.9502]
[1765537597842,0.486,3244.9,3244.8,0.001]
[1765537598141,3.56775906,3244.9,3244.8,0.001]
[1765537598345,3.56775906,3244.9,3244.8,0.4738]
[1765537598644,4.22565906,3244.9,3244.8,0.001]
[1765537598849,5.41319159,3244.9,3244.8,0.001]
[1765537599846,5.44398939,3244.9,3244.8,0.001]
[1765537600436,5.41319159,3244.9,3244.8,0.001]
[1765537601333,4.29849159,3244.9,3244.8,0.4738]
[1765537601528,3.56775906,3244.9,3244.8,0.4738]
[1765537602218,0.486,3244.9,3244.8,0.4738]
[1765537603230,6.16313826,3245.1,3244.8,0.4738]
[1765537603442,0.486,3244.9,3244.8,0.4738]
[1765537604323,3.56775906,3244.9,3244.8,0.4738]
[1765537605536,4.03155906,3244.9,3244.8,0.001]
[1765537611155,3.56775906,3244.9,3244.8,0.455]
[1765537611954,4.01925906,3244.9,3244.8,0.001]
[1765537612754,4.21075906,3244.9,3244.8,0.001]
[1765537612957,4.73975686,3244.9,3244.8,0.001]
[1765537613270,5.49110129,3244.9,3244.8,0.001]
[1765537613484,5.52189909,3244.9,3244.8,0.001]
[1765537614932,5.49110129,3244.9,3244.8,0.001]
[1765537621198,5.52189909,3244.9,3244.8,0.001]
[1765537626396,5.49110129,3244.9,3244.8,0.001]
[1765537628700,5.52189909,3244.9,3244.8,0.001]
[1765537628895,6.50787838,3244.9,3244.8,0.001]
[1765537629095,6.60050556,3244.9,3244.8,0.001]
[1765537630407,6.47708058,3244.9,3244.8,0.001]
[1765537630970,4.89587658,3244.9,3244.8,0.001]
[1765537631197,3.56775906,3244.9,3244.8,0.455]
[1765537631394,3.56775906,3244.9,3244.8,0.9493]
[1765537632071,3.56775906,3244.9,3244.8,0.455]
[1765537634899,4.21075906,3244.9,3244.8,0.001]
[1765537635198,5.37390151,3244.9,3244.8,0.001]
[1765537636171,4.23270151,3244.9,3244.8,0.455]
[1765537636397,3.56775906,3244.9,3244.8,0.455]
[1765537643479,4.02905906,3244.9,3244.8,0.001]
[1765537643682,4.70735906,3244.9,3244.8,0.001]
[1765537645286,4.22135906,3244.9,3244.8,0.001]
[1765537645492,4.70735906,3244.9,3244.8,0.001]
[1765537646824,5.48626151,3244.9,3244.8,0.001]
[1765537647728,5.51705931,3244.9,3244.8,0.001]
[1765537650233,4.80796151,3244.9,3244.8,0.001]
[1765537650404,4.02905906,3244.9,3244.8,0.001]
[1765537650607,3.56775906,3244.9,3244.8,0.946]
[1765537650806,3.56775906,3244.9,3244.8,0.4951]
[1765537652322,3.56775906,3244.9,3244.8,0.946]
[1765537655056,3.56775906,3244.9,3244.8,0.4951]
[1765537655552,3.56775906,3244.9,3244.8,0.001]
[1765537658554,3.56775906,3244.9,3244.8,0.4951]
[1765537662050,3.56775906,3244.9,3244.8,0.001]
[1765537662664,3.56775906,3244.9,3244.8,0.4951]
[1765537662869,3.56775906,3244.9,3244.8,0.001]
[1765537663051,4.02905906,3244.9,3244.8,0.001]
[1765537663452,4.51015906,3244.9,3244.8,0.001]
[1765537664368,5.46654151,3244.9,3244.8,0.001]
[1765537666378,4.78824151,3244.9,3244.8,0.001]
[1765537666671,4.02905906,3244.9,3244.8,0.001]
[1765537666965,3.56775906,3244.9,3244.8,0.946]
[1765537667470,3.56775906,3244.9,3244.8,0.4951]
[1765537669686,4.49255906,3244.9,3244.8,0.001]
[1765537669896,4.68075906,3244.9,3244.8,0.001]
[1765537670089,5.45700151,3244.9,3244.8,0.001]
[1765537670902,5.48779931,3244.9,3244.8,0.001]
[1765537672784,5.89330331,3244.9,3244.8,0.001]
[1765537674395,16.9516936,3244.9,3244.8,0.001]
[1765537674612,16.9208958,3244.9,3244.8,0.001]
[1765537675096,15.81322325,3244.9,3244.8,0.001]
[1765537676714,8.72545025,3244.9,3244.8,0.001]
[1765537678003,6.56642025,3244.9,3244.8,0.001]
[1765537679388,9.96221925,3244.9,3244.8,0.001]
[1765537680112,6.56642025,3244.9,3244.8,0.001]
[1765537680414,8.97068125,3244.9,3244.8,0.001]
[1765537680905,15.39068125,3244.9,3244.8,0.001]
[1765537683730,14.90468125,3244.9,3244.8,0.001]
[1765537683939,15.39068125,3244.9,3244.8,0.001]
[1765537684142,14.90468125,3244.9,3244.8,0.001]
[1765537684458,11.93161625,3244.9,3244.8,0.001]
[1765537684958,12.33712025,3244.9,3244.8,0.001]
[1765537685663,11.38742025,3244.9,3244.8,0.4699]
[1765537685954,11.87342025,3244.9,3244.8,0.4699]
[1765537686130,11.87342025,3244.9,3244.8,0.001]
[1765537686131,12.98642025,3244.9,3244.8,0.001]
[1765537693968,18.68994743,3244.9,3244.8,0.001]
[1765537696284,0.4637,3244.3,3244.1,0.001]
[1765537696480,0.4637,3244.3,3243.5,0.001]
[1765537696481,0.405504,3243.5,3242.8,0.4621]
[1765537696668,5.70352718,3243.0,3242.8,0.001]
[1765537696865,0.486,3242.9,3242.8,0.4621]
[1765537697248,0.486,3242.9,3242.8,0.9124]
[1765537699263,1.50644837,3243.5,3242.8,0.9124]
[1765537699474,6.65236862,3243.4,3242.9,0.4994]
[1765537699971,6.65236862,3243.4,3243.3,0.6358]
[1765537699972,4.1496596,3243.4,3243.3,0.6358]
[1765537700350,4.1496596,3243.4,3243.3,1.1352]
[1765537703802,4.1496596,3243.4,3243.3,0.6358]
[1765537704296,4.1496596,3243.4,3243.3,0.4511]
[1765537705182,4.1496596,3243.4,3243.3,0.9505]
[1765537706294,3.6636596,3243.4,3243.3,0.9505]
[1765537706494,4.1496596,3243.4,3243.3,0.9505]
[1765537707294,3.08280411,3243.8,3243.3,0.9505]
[1765537707594,1.06647529,3243.7,3243.4,0.4994]
[1765537707898,6.1659884,3243.6,3243.4,0.4994]
[1765537708262,6.1659884,3243.6,3243.1,0.1847]
[1765537708263,0.5146978,3243.5,3243.1,0.1847]
[1765537708487,0.5146978,3243.5,3242.8,0.5004]
[1765537708488,0.9431,3243.5,3242.8,0.5004]
[1765537708891,0.4839,3243.5,3242.8,0.5004]
[1765537709966,6.16636862,3243.4,3242.8,0.5004]
[1765537710162,0.5167978,3243.3,3242.8,0.001]
[1765537710367,0.51528617,3243.2,3242.8,0.5004]
[1765537711096,0.51528617,3243.2,3243.1,0.4511]
[1765537712995,3.59866061,3243.2,3243.1,0.4511]
[1765537713898,4.08566061,3243.2,3243.1,0.4511]
[1765537714285,7.65293505,3243.2,3242.9,0.4994]
[1765537715178,4.08566061,3243.2,3243.1,0.4511]
[1765537715778,7.16903505,3243.2,3242.9,0.4994]
[1765537716106,10.25240949,3243.2,3242.8,0.001]
[1765537716405,10.25240949,3243.2,3242.8,0.5004]
[1765537717380,0.77624245,3243.1,3242.8,0.001]
[1765537717580,0.4363018,3243.0,3242.8,0.001]
[1765537717788,0.405504,3243.0,3242.8,0.001]
[1765537718480,0.405504,3243.0,3242.9,0.4511]
[1765537719491,3.4890686,3243.0,3242.9,0.4511]
[1765537719999,3.4890686,3243.0,3242.9,0.9505]
[1765537723809,3.0835646,3243.0,3242.9,0.9505]
[1765537725307,3.0835646,3243.0,3242.9,0.4511]
[1765537727406,3.0835646,3243.0,3242.9,0.9253]
[1765537727616,3.5695646,3243.0,3242.9,0.4511]
[1765537727793,3.5695646,3243.0,3242.9,0.9253]
[1765537728307,3.0835646,3243.0,3242.9,0.9253]
[1765537728517,3.5695646,3243.0,3242.9,0.9253]
[1765537731815,3.5695646,3243.0,3242.9,0.4511]
[1765537736112,3.5695646,3243.0,3242.9,0.9253]
[1765537736113,0.486,3243.0,3242.9,0.9253]
[1765537736704,3.08341397,3243.2,3242.9,0.9253]
[1765537737017,3.08341397,3243.2,3242.8,0.001]
[1765537737018,0.486,3243.1,3242.8,0.001]
[1765537737202,0.486,3243.1,3243.0,0.4712]
[1765537737718,0.486,3243.1,3243.0,0.9454]